[Event "Late-Titled-Tuesday-Blitz-January-23-2024"]
[Site "Chess.com"]
[Date "2024.01.23"]
[Round "4"]
[White "VladimirKramnik"]
[Black "Yurovskykh_Oleksandr"]
[Result "1-0"]
[WhiteElo "2942"]
[BlackElo "2614"]
[TimeControl "180+1"]
[EndTime "14:37:25 PST"]
[Termination "VladimirKramnik won by resignation"]

1. e4 {[%clk 0:03:00.9]} 1... e6 {[%clk 0:02:59.2]} 2. d4 {[%clk 0:02:59.5]}
2... d5 {[%clk 0:02:59.4]} 3. exd5 {[%clk 0:02:59.8]} 3... exd5 {[%clk
0:02:59.6]} 4. Nf3 {[%clk 0:03:00.4]} 4... Bd6 {[%clk 0:02:59.7]} 5. c4 {[%clk
0:02:59.6]} 5... Nf6 {[%clk 0:02:59.1]} 6. Nc3 {[%clk 0:02:56.6]} 6... O-O
{[%clk 0:02:55.9]} 7. cxd5 {[%clk 0:02:56]} 7... Nbd7 {[%clk 0:02:55.3]} 8. Bc4
{[%clk 0:02:54.1]} 8... Nb6 {[%clk 0:02:52.2]} 9. Bb3 {[%clk 0:02:53.4]} 9...
Re8+ {[%clk 0:02:46.8]} 10. Be3 {[%clk 0:02:53.9]} 10... Ng4 {[%clk 0:02:39.3]}
11. O-O {[%clk 0:02:52]} 11... Rxe3 {[%clk 0:02:14.9]} 12. fxe3 {[%clk
0:02:49.1]} 12... Nxe3 {[%clk 0:02:15.8]} 13. Qd3 {[%clk 0:02:48.4]} 13... Nxf1
{[%clk 0:02:15.2]} 14. Rxf1 {[%clk 0:02:48.9]} 14... f6 {[%clk 0:01:58.9]} 15.
Nh4 {[%clk 0:02:26.6]} 15... Qe7 {[%clk 0:01:25.1]} 16. Bc2 {[%clk 0:02:12.5]}
16... g6 {[%clk 0:01:24.9]} 17. Nxg6 {[%clk 0:02:09.1]} 17... hxg6 {[%clk
0:01:24.2]} 18. Qxg6+ {[%clk 0:02:09.6]} 18... Qg7 {[%clk 0:01:24.9]} 19. Qe8+
{[%clk 0:02:08]} 19... Bf8 {[%clk 0:01:07.7]} 20. d6 {[%clk 0:02:00.5]} 20...
Bg4 {[%clk 0:00:51.4]} 21. d7 {[%clk 0:01:37.2]} 21... Qxd7 {[%clk 0:00:35.5]}
22. Qg6+ {[%clk 0:01:36]} 22... Qg7 {[%clk 0:00:35.4]} 23. Rxf6 {[%clk
0:01:33.5]} 23... Qxg6 {[%clk 0:00:19.8]} 24. Rxg6+ {[%clk 0:01:33]} 24... Bg7
{[%clk 0:00:18.4]} 25. Rxg4 {[%clk 0:01:33.1]} 25... Rd8 {[%clk 0:00:17.9]} 26.
Bb3+ {[%clk 0:01:22.1]} 26... Kf8 {[%clk 0:00:17.9]} 27. Rf4+ {[%clk 0:01:19.4]}
27... Ke8 {[%clk 0:00:18.3]} 28. Ne2 {[%clk 0:01:15.1]} 28... Nd5 {[%clk
0:00:13.3]} 29. Re4+ {[%clk 0:01:12.2]} 29... Kf8 {[%clk 0:00:12.7]} 30. Bxd5
{[%clk 0:01:10.4]} 30... Rxd5 {[%clk 0:00:13.6]} 31. Nf4 {[%clk 0:01:10.3]}
31... Ra5 {[%clk 0:00:12.1]} 32. Ne6+ {[%clk 0:01:08.7]} 32... Kf7 {[%clk
0:00:12.5]} 33. Nxg7 {[%clk 0:01:08.2]} 33... Kxg7 {[%clk 0:00:13.4]} 34. Re7+
{[%clk 0:01:07.2]} 34... Kf6 {[%clk 0:00:13.9]} 35. Rxc7 {[%clk 0:01:07.6]}
35... Rxa2 {[%clk 0:00:14.5]} 36. Rxb7 {[%clk 0:01:07.1]} 36... Ke6 {[%clk
0:00:14.4]} 37. h4 {[%clk 0:01:04.1]} 37... Kd5 {[%clk 0:00:14.7]} 38. h5 {[%clk
0:01:02.4]} 38... Ra6 {[%clk 0:00:15.4]} 39. Kh2 {[%clk 0:00:57.3]} 39... Kxd4
{[%clk 0:00:15.2]} 40. g4 {[%clk 0:00:55.7]} 40... Ke4 {[%clk 0:00:13.7]} 41.
Kg3 {[%clk 0:00:54.8]} 41... Rd6 {[%clk 0:00:10.6]} 42. Re7+ {[%clk 0:00:53.2]}
42... Kd5 {[%clk 0:00:10.2]} 43. g5 {[%clk 0:00:52.5]} 1-0

[Event "Late-Titled-Tuesday-Blitz-January-23-2024"]
[Site "Chess.com"]
[Date "2024.01.23"]
[Round "4"]
[White "Ali_rastbod"]
[Black "PoXerStar"]
[Result "1-0"]
[WhiteElo "2698"]
[BlackElo "2443"]
[TimeControl "180+1"]
[EndTime "14:37:25 PST"]
[Termination "Ali_rastbod won by resignation"]

1. d4 {[%clk 0:03:00.9]} 1... Nf6 {[%clk 0:02:59.4]} 2. Nf3 {[%clk 0:03:01.4]}
2... c5 {[%clk 0:02:58.8]} 3. d5 {[%clk 0:03:01.2]} 3... g6 {[%clk 0:02:52.8]}
4. Nc3 {[%clk 0:03:01.3]} 4... Bg7 {[%clk 0:02:46.7]} 5. e4 {[%clk 0:03:01.6]}
5... d6 {[%clk 0:02:45.5]} 6. Bb5+ {[%clk 0:03:02.1]} 6... Bd7 {[%clk 0:02:44]}
7. a4 {[%clk 0:03:03]} 7... O-O {[%clk 0:02:43.3]} 8. h3 {[%clk 0:03:02.6]} 8...
Bxb5 {[%clk 0:02:29.7]} 9. axb5 {[%clk 0:03:01.8]} 9... Nbd7 {[%clk 0:02:27.2]}
10. O-O {[%clk 0:03:00.6]} 10... Ne8 {[%clk 0:02:26.4]} 11. Qe2 {[%clk
0:02:58.1]} 11... Nc7 {[%clk 0:02:26.2]} 12. Bf4 {[%clk 0:02:58.2]} 12... Re8
{[%clk 0:02:20.3]} 13. Rfd1 {[%clk 0:02:56.4]} 13... Nb6 {[%clk 0:01:59.7]} 14.
e5 {[%clk 0:02:56.3]} 14... dxe5 {[%clk 0:01:48.5]} 15. Bxe5 {[%clk 0:02:57.2]}
15... Nc8 {[%clk 0:01:38.7]} 16. Bxg7 {[%clk 0:02:48.1]} 16... Kxg7 {[%clk
0:01:39.6]} 17. Ne4 {[%clk 0:02:48.7]} 17... b6 {[%clk 0:01:37]} 18. Ne5 {[%clk
0:02:48.5]} 18... Nd6 {[%clk 0:01:31.3]} 19. Nc6 {[%clk 0:02:48.3]} 19... Qd7
{[%clk 0:01:31.1]} 20. c4 {[%clk 0:02:42.5]} 20... a6 {[%clk 0:01:22.5]} 21.
bxa6 {[%clk 0:02:34.9]} 21... Nxa6 {[%clk 0:01:09.8]} 22. b3 {[%clk 0:02:24]}
22... Nc7 {[%clk 0:00:33.9]} 23. Qb2+ {[%clk 0:02:21.6]} 23... f6 {[%clk
0:00:32.9]} 24. Rxa8 {[%clk 0:02:07.5]} 24... Rxa8 {[%clk 0:00:31.5]} 25. Re1
{[%clk 0:01:55.9]} 25... Nf5 {[%clk 0:00:22.5]} 26. g4 {[%clk 0:01:35.1]} 26...
Nd6 {[%clk 0:00:18.8]} 27. Nxc5 {[%clk 0:00:56.9]} 27... bxc5 {[%clk 0:00:18.4]}
28. Rxe7+ {[%clk 0:00:56.4]} 28... Qxe7 {[%clk 0:00:19.3]} 29. Nxe7 {[%clk
0:00:56.9]} 29... Re8 {[%clk 0:00:19]} 30. g5 {[%clk 0:00:56.6]} 30... Ne4
{[%clk 0:00:15.1]} 31. d6 {[%clk 0:00:56.9]} 31... Ne6 {[%clk 0:00:11.7]} 32.
gxf6+ {[%clk 0:00:55.5]} 32... Nxf6 {[%clk 0:00:12.6]} 33. Qe5 {[%clk
0:00:52.9]} 33... Kf7 {[%clk 0:00:08]} 34. Nd5 {[%clk 0:00:49.6]} 34... Nd4
{[%clk 0:00:06.4]} 35. Qxf6+ {[%clk 0:00:49.2]} 1-0

[Event "Late-Titled-Tuesday-Blitz-January-23-2024"]
[Site "Chess.com"]
[Date "2024.01.23"]
[Round "4"]
[White "kingofthenil"]
[Black "Road2GM3000"]
[Result "0-1"]
[WhiteElo "2686"]
[BlackElo "2473"]
[TimeControl "180+1"]
[EndTime "14:37:27 PST"]
[Termination "Road2GM3000 won by checkmate"]

1. e4 {[%clk 0:03:00.9]} 1... c5 {[%clk 0:02:57.4]} 2. d3 {[%clk 0:03:01.1]}
2... Nc6 {[%clk 0:02:57]} 3. g3 {[%clk 0:03:02]} 3... d6 {[%clk 0:02:55.9]} 4.
Bg2 {[%clk 0:03:02.3]} 4... g6 {[%clk 0:02:54.9]} 5. f4 {[%clk 0:03:02.6]} 5...
Bg7 {[%clk 0:02:55.3]} 6. Nf3 {[%clk 0:03:03.5]} 6... Bg4 {[%clk 0:02:52.1]} 7.
O-O {[%clk 0:03:04.4]} 7... Nd4 {[%clk 0:02:49.1]} 8. Nbd2 {[%clk 0:03:04.6]}
8... e6 {[%clk 0:02:48.7]} 9. h3 {[%clk 0:03:01.9]} 9... Bxf3 {[%clk 0:02:48.4]}
10. Nxf3 {[%clk 0:03:02.8]} 10... Ne7 {[%clk 0:02:46.9]} 11. Nh2 {[%clk
0:02:53.3]} 11... Qb6 {[%clk 0:02:45.9]} 12. Kh1 {[%clk 0:02:50.2]} 12... h5
{[%clk 0:02:40.2]} 13. c3 {[%clk 0:02:50.5]} 13... Ndc6 {[%clk 0:02:38]} 14. Nf3
{[%clk 0:02:51.1]} 14... d5 {[%clk 0:02:34.2]} 15. Qb3 {[%clk 0:02:46.3]} 15...
dxe4 {[%clk 0:02:27.3]} 16. dxe4 {[%clk 0:02:46.3]} 16... Qxb3 {[%clk 0:02:27]}
17. axb3 {[%clk 0:02:47.2]} 17... O-O-O {[%clk 0:02:25.5]} 18. Ng5 {[%clk
0:02:46.1]} 18... Rhf8 {[%clk 0:02:24.9]} 19. Be3 {[%clk 0:02:44.6]} 19... Rd3
{[%clk 0:02:16.7]} 20. Bxc5 {[%clk 0:02:44]} 20... Rxg3 {[%clk 0:02:16.6]} 21.
b4 {[%clk 0:02:41.2]} 21... e5 {[%clk 0:02:06.6]} 22. b5 {[%clk 0:02:40.2]}
22... b6 {[%clk 0:01:44.6]} 23. Ba3 {[%clk 0:02:35.7]} 23... Rd8 {[%clk
0:01:02.8]} 24. Nxf7 {[%clk 0:02:32.1]} 24... Rd2 {[%clk 0:01:02.4]} 25. Rg1
{[%clk 0:02:23.7]} 25... exf4 {[%clk 0:01:01.5]} 26. Raf1 {[%clk 0:02:18.4]}
26... Ne5 {[%clk 0:00:43.7]} 27. Nxe5 {[%clk 0:02:15.5]} 27... Bxe5 {[%clk
0:00:44.6]} 28. Bxe7 {[%clk 0:02:15.2]} 28... f3 {[%clk 0:00:45]} 29. Rxf3
{[%clk 0:02:11.6]} 29... Rxf3 {[%clk 0:00:43.9]} 30. Ra1 {[%clk 0:01:36.5]}
30... Rff2 {[%clk 0:00:42.1]} 31. Rg1 {[%clk 0:01:29.4]} 31... Rxb2 {[%clk
0:00:26.4]} 32. h4 {[%clk 0:01:29.8]} 32... Bf4 {[%clk 0:00:24.3]} 33. c4 {[%clk
0:01:08.7]} 33... Be3 {[%clk 0:00:23.6]} 34. Ba3 {[%clk 0:00:48]} 34... Ra2
{[%clk 0:00:22.7]} 35. Bd6 {[%clk 0:00:48.5]} 35... Rfd2 {[%clk 0:00:20.3]} 36.
Bh3+ {[%clk 0:00:43.6]} 36... Kd8 {[%clk 0:00:13.4]} 37. Bb4 {[%clk 0:00:30.2]}
37... Rh2# {[%clk 0:00:12.6]} 0-1

[Event "Late-Titled-Tuesday-Blitz-January-23-2024"]
[Site "Chess.com"]
[Date "2024.01.23"]
[Round "4"]
[White "LyonBeast"]
[Black "Fandorine"]
[Result "1-0"]
[WhiteElo "3174"]
[BlackElo "2973"]
[TimeControl "180+1"]
[EndTime "14:37:28 PST"]
[Termination "LyonBeast won by resignation"]

1. e4 {[%clk 0:03:00.9]} 1... e5 {[%clk 0:02:59.1]} 2. Nf3 {[%clk 0:02:59.4]}
2... Nc6 {[%clk 0:02:59.7]} 3. Bc4 {[%clk 0:02:56]} 3... Nf6 {[%clk 0:02:59.3]}
4. d3 {[%clk 0:02:56.2]} 4... Bc5 {[%clk 0:02:59.6]} 5. O-O {[%clk 0:02:56]}
5... d6 {[%clk 0:03:00]} 6. c3 {[%clk 0:02:55.2]} 6... h6 {[%clk 0:03:00.2]} 7.
a4 {[%clk 0:02:54.1]} 7... a5 {[%clk 0:02:58]} 8. Na3 {[%clk 0:02:52.3]} 8...
O-O {[%clk 0:02:56.5]} 9. Nc2 {[%clk 0:02:46.7]} 9... Nh7 {[%clk 0:02:45.4]} 10.
Ne3 {[%clk 0:02:40.2]} 10... Ng5 {[%clk 0:02:37.7]} 11. Nxg5 {[%clk 0:02:37]}
11... Qxg5 {[%clk 0:02:38.6]} 12. Nd5 {[%clk 0:02:31]} 12... Qd8 {[%clk
0:02:37.3]} 13. Kh1 {[%clk 0:02:31.4]} 13... Be6 {[%clk 0:02:02.6]} 14. f4
{[%clk 0:02:29.1]} 14... exf4 {[%clk 0:02:03.1]} 15. d4 {[%clk 0:02:26.2]} 15...
Ba7 {[%clk 0:02:01.6]} 16. Bxf4 {[%clk 0:02:24.2]} 16... Ne7 {[%clk 0:02:02.2]}
17. Qh5 {[%clk 0:02:10.9]} 17... Bxd5 {[%clk 0:01:08.7]} 18. Bxd5 {[%clk
0:01:58.3]} 18... Nxd5 {[%clk 0:01:07.6]} 19. Qxd5 {[%clk 0:01:58.5]} 19... Qc8
{[%clk 0:00:40.1]} 20. Rf3 {[%clk 0:01:38.6]} 20... Bb6 {[%clk 0:00:33.9]} 21.
Raf1 {[%clk 0:01:31.9]} 21... Qe6 {[%clk 0:00:34]} 22. Qxb7 {[%clk 0:01:31.5]}
22... Rae8 {[%clk 0:00:30.3]} 23. e5 {[%clk 0:01:28.3]} 23... d5 {[%clk
0:00:28.8]} 24. Qa6 {[%clk 0:01:17.9]} 24... f5 {[%clk 0:00:28.6]} 25. exf6
{[%clk 0:01:13.7]} 25... Rxf6 {[%clk 0:00:27.6]} 26. Be5 {[%clk 0:01:05.3]}
26... Rxf3 {[%clk 0:00:27.3]} 27. Rxf3 {[%clk 0:01:06.2]} 27... Qg6 {[%clk
0:00:20.7]} 28. h3 {[%clk 0:00:53.3]} 28... Qb1+ {[%clk 0:00:14.9]} 29. Qf1
{[%clk 0:00:53.5]} 29... Qxf1+ {[%clk 0:00:11.8]} 30. Rxf1 {[%clk 0:00:54.4]}
30... c5 {[%clk 0:00:12.1]} 31. Rd1 {[%clk 0:00:46.8]} 31... c4 {[%clk
0:00:12.3]} 32. b3 {[%clk 0:00:46.9]} 32... Rc8 {[%clk 0:00:10.3]} 33. Rb1
{[%clk 0:00:46.8]} 33... cxb3 {[%clk 0:00:07]} 34. Rxb3 {[%clk 0:00:46.7]} 34...
Rc6 {[%clk 0:00:07.5]} 35. Rb5 {[%clk 0:00:45.6]} 35... Kf7 {[%clk 0:00:05.7]}
36. Rxd5 {[%clk 0:00:42.8]} 36... Rxc3 {[%clk 0:00:05.9]} 37. Rd7+ {[%clk
0:00:42.6]} 37... Ke6 {[%clk 0:00:06.3]} 38. Rd6+ {[%clk 0:00:43]} 1-0

[Event "Late-Titled-Tuesday-Blitz-January-23-2024"]
[Site "Chess.com"]
[Date "2024.01.23"]
[Round "4"]
[White "ArtemDyachuk"]
[Black "Fernando_Offermann"]
[Result "1-0"]
[WhiteElo "2615"]
[BlackElo "2381"]
[TimeControl "180+1"]
[EndTime "14:37:29 PST"]
[Termination "ArtemDyachuk won on time"]

1. e4 {[%clk 0:02:39.6]} 1... c5 {[%clk 0:02:58.6]} 2. Nf3 {[%clk 0:02:38.5]}
2... d6 {[%clk 0:02:58.6]} 3. d4 {[%clk 0:02:36.8]} 3... cxd4 {[%clk 0:02:58.6]}
4. Nxd4 {[%clk 0:02:37.7]} 4... Nf6 {[%clk 0:02:58.7]} 5. Nc3 {[%clk 0:02:37]}
5... a6 {[%clk 0:02:58.8]} 6. Nb3 {[%clk 0:02:36.4]} 6... b5 {[%clk 0:02:51.3]}
7. a4 {[%clk 0:02:34.3]} 7... b4 {[%clk 0:02:50.8]} 8. Nd5 {[%clk 0:02:33.9]}
8... Bb7 {[%clk 0:02:49.2]} 9. Nxf6+ {[%clk 0:02:32.7]} 9... gxf6 {[%clk
0:02:48.8]} 10. Bd3 {[%clk 0:02:33.2]} 10... h5 {[%clk 0:02:47.1]} 11. O-O
{[%clk 0:02:33]} 11... Nd7 {[%clk 0:02:35.6]} 12. a5 {[%clk 0:02:27.8]} 12... h4
{[%clk 0:02:29.9]} 13. Qe2 {[%clk 0:02:26.8]} 13... Qc7 {[%clk 0:02:21.4]} 14.
Ra4 {[%clk 0:02:24]} 14... f5 {[%clk 0:02:07.1]} 15. Rxb4 {[%clk 0:02:21.3]}
15... fxe4 {[%clk 0:02:05.4]} 16. Rxb7 {[%clk 0:02:17.4]} 16... Qxb7 {[%clk
0:02:04.5]} 17. Bxe4 {[%clk 0:02:17]} 17... d5 {[%clk 0:02:03.7]} 18. Bf3 {[%clk
0:02:15.1]} 18... e6 {[%clk 0:02:02.7]} 19. Rd1 {[%clk 0:02:14.9]} 19... Be7
{[%clk 0:02:02.3]} 20. Nd4 {[%clk 0:01:46.6]} 20... Qb4 {[%clk 0:01:56.5]} 21.
Nc6 {[%clk 0:01:35.1]} 21... Qb5 {[%clk 0:01:43.6]} 22. c4 {[%clk 0:01:26]}
22... Qxc6 {[%clk 0:01:21.9]} 23. cxd5 {[%clk 0:01:24.3]} 23... Qb5 {[%clk
0:01:21.6]} 24. Qxb5 {[%clk 0:01:23.4]} 24... axb5 {[%clk 0:01:21.1]} 25. dxe6
{[%clk 0:01:23.8]} 25... Rxa5 {[%clk 0:01:13.1]} 26. exd7+ {[%clk 0:01:21.8]}
26... Kd8 {[%clk 0:01:09.5]} 27. Be3 {[%clk 0:01:12.2]} 27... Ra6 {[%clk
0:01:02.2]} 28. Bg4 {[%clk 0:01:10.2]} 28... Bf6 {[%clk 0:00:44.6]} 29. Rc1
{[%clk 0:01:04.6]} 29... Bxb2 {[%clk 0:00:36.6]} 30. Rc8+ {[%clk 0:00:57.1]}
30... Ke7 {[%clk 0:00:35.8]} 31. h3 {[%clk 0:00:49.9]} 31... Be5 {[%clk
0:00:23.5]} 32. f4 {[%clk 0:00:46.8]} 32... Bf6 {[%clk 0:00:13.2]} 33. Bc5+
{[%clk 0:00:46.2]} 33... Rd6 {[%clk 0:00:11.1]} 34. Rxh8 {[%clk 0:00:45.4]} 1-0

[Event "Late-Titled-Tuesday-Blitz-January-23-2024"]
[Site "Chess.com"]
[Date "2024.01.23"]
[Round "4"]
[White "ChEsper99"]
[Black "IngOscarArdila"]
[Result "0-1"]
[WhiteElo "2112"]
[BlackElo "2372"]
[TimeControl "180+1"]
[EndTime "14:37:29 PST"]
[Termination "IngOscarArdila won on time"]

1. d4 {[%clk 0:03:00]} 1... Nf6 {[%clk 0:03:00]} 2. Bf4 {[%clk 0:02:42.8]} 2...
e6 {[%clk 0:03:00.9]} 3. Nf3 {[%clk 0:02:38.7]} 3... Be7 {[%clk 0:03:01.4]} 4.
c3 {[%clk 0:02:38.3]} 4... d6 {[%clk 0:03:01.6]} 5. e3 {[%clk 0:02:38.6]} 5...
Nbd7 {[%clk 0:03:02.2]} 6. Bd3 {[%clk 0:02:38.5]} 6... b6 {[%clk 0:03:02.7]} 7.
Nbd2 {[%clk 0:02:36.2]} 7... Bb7 {[%clk 0:03:02.9]} 8. O-O {[%clk 0:02:30.4]}
8... Nh5 {[%clk 0:02:59.7]} 9. Bg3 {[%clk 0:02:30]} 9... Nxg3 {[%clk 0:02:59.8]}
10. hxg3 {[%clk 0:02:29.8]} 10... O-O {[%clk 0:02:59.6]} 11. Qc2 {[%clk
0:02:25.5]} 11... f5 {[%clk 0:02:59.3]} 12. e4 {[%clk 0:02:22]} 12... g6 {[%clk
0:02:59.4]} 13. a4 {[%clk 0:02:17]} 13... a5 {[%clk 0:02:59.1]} 14. Qb3 {[%clk
0:02:11.2]} 14... d5 {[%clk 0:02:55.5]} 15. exd5 {[%clk 0:01:52.1]} 15... Bxd5
{[%clk 0:02:41.6]} 16. Bc4 {[%clk 0:01:46.1]} 16... Nf6 {[%clk 0:02:41.2]} 17.
Bxd5 {[%clk 0:01:44.4]} 17... Qxd5 {[%clk 0:02:41.1]} 18. Qxd5 {[%clk
0:01:36.1]} 18... exd5 {[%clk 0:02:41.2]} 19. Rfe1 {[%clk 0:01:33.3]} 19... Bd6
{[%clk 0:02:41.4]} 20. Ne5 {[%clk 0:01:28]} 20... Ne4 {[%clk 0:02:33.9]} 21.
Rad1 {[%clk 0:00:53.7]} 21... Rfe8 {[%clk 0:02:32.1]} 22. Nd3 {[%clk 0:00:32]}
22... Kg7 {[%clk 0:02:25.7]} 23. Nf3 {[%clk 0:00:30.2]} 23... Re7 {[%clk
0:02:20.4]} 24. Nfe5 {[%clk 0:00:28.8]} 24... Rae8 {[%clk 0:02:18.8]} 25. Re2
{[%clk 0:00:17.3]} 25... h6 {[%clk 0:01:57.4]} 26. Kh2 {[%clk 0:00:17.4]} 26...
g5 {[%clk 0:01:56.5]} 27. f3 {[%clk 0:00:17.6]} 27... Nf6 {[%clk 0:01:52]} 28.
Rde1 {[%clk 0:00:17.6]} 28... h5 {[%clk 0:01:38.4]} 29. Kg1 {[%clk 0:00:16.1]}
29... c5 {[%clk 0:01:22.3]} 30. Kf1 {[%clk 0:00:05.7]} 30... c4 {[%clk
0:01:20.6]} 31. Nc1 {[%clk 0:00:04.3]} 31... Bxe5 {[%clk 0:01:15.8]} 32. Rxe5
{[%clk 0:00:04.2]} 32... Rxe5 {[%clk 0:01:15.5]} 33. Rxe5 {[%clk 0:00:03.6]}
33... Rxe5 {[%clk 0:01:15.6]} 34. dxe5 {[%clk 0:00:04.5]} 34... Nd7 {[%clk
0:01:15.5]} 35. f4 {[%clk 0:00:05.1]} 35... Kg6 {[%clk 0:01:10.8]} 36. b3 {[%clk
0:00:04.7]} 36... Nc5 {[%clk 0:01:08]} 37. bxc4 {[%clk 0:00:04]} 37... dxc4
{[%clk 0:01:08.4]} 38. Ne2 {[%clk 0:00:02.5]} 38... Nxa4 {[%clk 0:01:05.2]} 39.
Kf2 {[%clk 0:00:02.6]} 39... Nc5 {[%clk 0:01:05.1]} 40. Ke3 {[%clk 0:00:02.8]}
40... a4 {[%clk 0:01:05]} 41. Kd4 {[%clk 0:00:03]} 41... a3 {[%clk 0:01:00.7]}
0-1

[Event "Late-Titled-Tuesday-Blitz-January-23-2024"]
[Site "Chess.com"]
[Date "2024.01.23"]
[Round "4"]
[White "SEBAZZANO"]
[Black "stasOR4ik"]
[Result "0-1"]
[WhiteElo "2209"]
[BlackElo "2406"]
[TimeControl "180+1"]
[EndTime "14:37:30 PST"]
[Termination "stasOR4ik won on time"]

1. d4 {[%clk 0:03:00.9]} 1... d5 {[%clk 0:02:58.7]} 2. Bf4 {[%clk 0:02:59.9]}
2... c5 {[%clk 0:02:57]} 3. e4 {[%clk 0:02:57.1]} 3... cxd4 {[%clk 0:02:55.5]}
4. Qxd4 {[%clk 0:02:56.1]} 4... Nc6 {[%clk 0:02:48.1]} 5. Qxd5 {[%clk
0:02:53.3]} 5... Be6 {[%clk 0:02:46]} 6. Qxd8+ {[%clk 0:02:42.2]} 6... Rxd8
{[%clk 0:02:46.9]} 7. Na3 {[%clk 0:02:36.8]} 7... g6 {[%clk 0:02:45.4]} 8. Nf3
{[%clk 0:02:31.8]} 8... Bg7 {[%clk 0:02:45.4]} 9. c3 {[%clk 0:02:31.8]} 9... Nf6
{[%clk 0:02:43.1]} 10. Nd2 {[%clk 0:02:10.5]} 10... O-O {[%clk 0:02:27.7]} 11.
Bc4 {[%clk 0:02:08.7]} 11... Nh5 {[%clk 0:02:20.8]} 12. Be3 {[%clk 0:01:59.9]}
12... Ne5 {[%clk 0:02:20.7]} 13. Bxe6 {[%clk 0:01:54.2]} 13... Nd3+ {[%clk
0:02:19.9]} 14. Ke2 {[%clk 0:01:53.3]} 14... fxe6 {[%clk 0:02:20.1]} 15. Rab1
{[%clk 0:01:44.4]} 15... Nhf4+ {[%clk 0:02:14.9]} 16. Kf1 {[%clk 0:01:29.8]}
16... Bh6 {[%clk 0:02:05.2]} 17. Nb5 {[%clk 0:01:06.3]} 17... Nh3 {[%clk
0:02:03.4]} 18. Nf3 {[%clk 0:00:28.3]} 18... Bxe3 {[%clk 0:02:01.5]} 19. fxe3
{[%clk 0:00:28.2]} 19... Nhf2 {[%clk 0:02:00]} 20. Rg1 {[%clk 0:00:25.1]} 20...
Nxe4 {[%clk 0:01:54.6]} 21. Ke2 {[%clk 0:00:24.4]} 21... g5 {[%clk 0:01:45.8]}
22. Rgf1 {[%clk 0:00:16.9]} 22... g4 {[%clk 0:01:40.1]} 23. Nfd4 {[%clk
0:00:16.3]} 23... Rxf1 {[%clk 0:01:37.1]} 24. Rxf1 {[%clk 0:00:15]} 24... Nxb2
{[%clk 0:01:33]} 25. Rf4 {[%clk 0:00:08.6]} 25... Nf6 {[%clk 0:01:23.2]} 26.
Nxe6 {[%clk 0:00:08.7]} 26... Rc8 {[%clk 0:01:14.9]} 27. Rd4 {[%clk 0:00:06.4]}
27... a6 {[%clk 0:01:10.6]} 28. Nbc7 {[%clk 0:00:04.4]} 28... Kf7 {[%clk
0:01:05.6]} 29. Rd8 {[%clk 0:00:04.3]} 29... Rxd8 {[%clk 0:00:58.9]} 30. Nxd8+
{[%clk 0:00:05.2]} 30... Kg6 {[%clk 0:00:59]} 31. Nxb7 {[%clk 0:00:05.3]} 31...
Na4 {[%clk 0:00:58.6]} 32. Nxa6 {[%clk 0:00:04.7]} 32... Nxc3+ {[%clk
0:00:58.2]} 33. Kd3 {[%clk 0:00:05.3]} 33... Nxa2 {[%clk 0:00:58.8]} 34. Nac5
{[%clk 0:00:05.4]} 34... Nb4+ {[%clk 0:00:58]} 35. Ke2 {[%clk 0:00:05]} 35...
Nbd5 {[%clk 0:00:57.4]} 36. Nd8 {[%clk 0:00:04.5]} 36... Kf5 {[%clk 0:00:56.5]}
37. Nde6 {[%clk 0:00:04.3]} 37... Nc3+ {[%clk 0:00:56]} 38. Kf2 {[%clk
0:00:01.8]} 38... Nce4+ {[%clk 0:00:56.1]} 39. Ke2 {[%clk 0:00:01]} 39... Nxc5
{[%clk 0:00:51.7]} 0-1

[Event "Late-Titled-Tuesday-Blitz-January-23-2024"]
[Site "Chess.com"]
[Date "2024.01.23"]
[Round "4"]
[White "eCztery"]
[Black "SmirnovTimofey2000"]
[Result "1-0"]
[WhiteElo "2443"]
[BlackElo "1969"]
[TimeControl "180+1"]
[EndTime "14:37:31 PST"]
[Termination "eCztery won on time"]

1. d4 {[%clk 0:03:00.9]} 1... d5 {[%clk 0:02:59.5]} 2. Nf3 {[%clk 0:03:00.8]}
2... Nf6 {[%clk 0:02:58.5]} 3. Bf4 {[%clk 0:03:00.6]} 3... Bf5 {[%clk
0:02:56.7]} 4. e3 {[%clk 0:03:00.9]} 4... e6 {[%clk 0:02:56.5]} 5. Bd3 {[%clk
0:02:58.7]} 5... Ne4 {[%clk 0:02:56]} 6. c4 {[%clk 0:02:55.6]} 6... Be7 {[%clk
0:02:51.9]} 7. O-O {[%clk 0:02:54.5]} 7... g5 {[%clk 0:02:51.8]} 8. Be5 {[%clk
0:02:47.5]} 8... f6 {[%clk 0:02:51.4]} 9. Bg3 {[%clk 0:02:28.4]} 9... h5 {[%clk
0:02:50.6]} 10. cxd5 {[%clk 0:02:17.3]} 10... h4 {[%clk 0:02:39]} 11. Qc2 {[%clk
0:02:04.9]} 11... hxg3 {[%clk 0:01:54.9]} 12. Bxe4 {[%clk 0:02:03.8]} 12...
gxh2+ {[%clk 0:01:27.9]} 13. Nxh2 {[%clk 0:02:04.7]} 13... Bxe4 {[%clk
0:01:15.1]} 14. Qxe4 {[%clk 0:02:03.4]} 14... Qxd5 {[%clk 0:01:14.6]} 15. Qg6+
{[%clk 0:01:55.9]} 15... Kd7 {[%clk 0:01:13.8]} 16. Nc3 {[%clk 0:01:51.1]} 16...
Qf5 {[%clk 0:01:03.4]} 17. Qxf5 {[%clk 0:01:46.6]} 17... exf5 {[%clk 0:01:01.5]}
18. Rac1 {[%clk 0:01:31.8]} 18... c6 {[%clk 0:00:56.9]} 19. e4 {[%clk
0:01:24.7]} 19... fxe4 {[%clk 0:00:53.7]} 20. Nxe4 {[%clk 0:01:25.6]} 20... Bd6
{[%clk 0:00:47.8]} 21. Nxf6+ {[%clk 0:01:17.3]} 21... Ke6 {[%clk 0:00:37.2]} 22.
Nhg4 {[%clk 0:01:18.2]} 22... Nd7 {[%clk 0:00:31.3]} 23. Rfe1+ {[%clk
0:01:16.6]} 23... Kf5 {[%clk 0:00:24.4]} 24. Nxd7 {[%clk 0:01:13.7]} 24... Kxg4
{[%clk 0:00:22.8]} 25. Ne5+ {[%clk 0:01:11.4]} 25... Kf5 {[%clk 0:00:15.6]} 26.
g3 {[%clk 0:01:09.5]} 26... Bxe5 {[%clk 0:00:09.2]} 27. Rxe5+ {[%clk 0:01:07.5]}
27... Kf6 {[%clk 0:00:09.6]} 28. Rce1 {[%clk 0:01:06.6]} 28... Rhd8 {[%clk
0:00:05.2]} 29. R1e4 {[%clk 0:01:04.4]} 29... Rd7 {[%clk 0:00:04.1]} 30. g4
{[%clk 0:01:03.2]} 30... Rad8 {[%clk 0:00:03.5]} 31. Rf5+ {[%clk 0:01:03.7]}
31... Kg6 {[%clk 0:00:03.6]} 32. Re6+ {[%clk 0:01:03.6]} 32... Kg7 {[%clk
0:00:03]} 33. Rxg5+ {[%clk 0:01:03.6]} 33... Kf7 {[%clk 0:00:01.2]} 34. Reg6
{[%clk 0:00:55.2]} 34... Rxd4 {[%clk 0:00:01.1]} 35. Rg7+ {[%clk 0:00:55.7]}
35... Kf6 {[%clk 0:00:01.3]} 36. R5g6+ {[%clk 0:00:56.2]} 36... Ke5 {[%clk
0:00:01.3]} 37. Rxb7 {[%clk 0:00:53.6]} 1-0